fUSD/lending_fUSD_20251031
["ID","MTS","AMOUNT","RATE_DAILY","PERIOD"]
[392775046,1761940248721,-169.620395,0.000249,7]
[392775047,1761940248731,-169.620395,0.000249,7]
[392775048,1761940248741,-151.0,0.000249,7]
[392775049,1761940248750,-151.0,0.000249,7]
[392775050,1761940248759,-151.0,0.000249,7]
[392775051,1761940248768,-151.0,0.000249,7]
[392775052,1761940248777,-151.0,0.000249,7]
[392775053,1761940248787,-210.840109,0.000249,7]
[392775054,1761940248796,-151.0,0.000249,7]
[392775055,1761940248805,-151.0,0.000249,7]
[392775056,1761940248814,-151.0,0.000249,7]
[392775057,1761940248824,-151.0,0.000249,7]
[392775058,1761940248833,-151.0,0.000249,7]
[392775059,1761940248843,-155.44974,0.000249,7]
[392775060,1761940248852,-235.555324,0.000249,7]
[392775061,1761940248862,-152.88356,0.000249,7]
[392775062,1761940248873,-235.555324,0.000249,7]
[392775063,1761940248883,-235.555324,0.000249,7]
[392775064,1761940248893,-971.271533,0.000249,7]
[392775065,1761940248905,-154.1381,0.000249,7]
[392775066,1761940248914,-235.555324,0.000249,7]
[392775067,1761940248924,-971.271533,0.000249,7]
[392775068,1761940248933,-971.271533,0.000249,7]
[392775069,1761940248943,-971.271533,0.000249,7]
[392775070,1761940248953,-151.0,0.000249,7]
[392775071,1761940248963,-151.0,0.000249,7]
[392775072,1761940248972,-283.672849,0.000249,7]
[392775073,1761940248983,-151.0,0.000249,7]
[392775074,1761940248993,-151.0,0.000249,7]
[392775075,1761940249004,-283.672849,0.000249,7]
[392775076,1761940249014,-151.0,0.000249,7]
[392775077,1761940249024,-283.672849,0.000249,7]
[392775078,1761940249034,-151.0,0.000249,7]
[392775079,1761940249043,-283.672849,0.000249,7]
[392775080,1761940249053,-151.0,0.000249,7]
[392775081,1761940249063,-499.459487,0.000249,7]
[392775082,1761940249074,-151.0,0.000249,7]
[392775083,1761940249084,-151.0,0.000249,7]
[392775084,1761940249094,-499.459487,0.000249,7]
[392775085,1761940249104,-499.459487,0.000249,7]
[392775086,1761940249114,-499.459487,0.000249,7]
[392775087,1761940249123,-294.859152,0.000249,7]
[392775088,1761940249132,-151.0,0.000249,7]
[392775089,1761940249142,-159.358683,0.000249,7]
[392775090,1761940249153,-176.50017,0.000249,7]
[392775091,1761940249162,-151.0,0.000249,7]
[392775092,1761940249172,-159.358683,0.000249,7]
[392775093,1761940249181,-176.50017,0.000249,7]
[392775094,1761940249190,-151.0,0.000249,7]
[392775095,1761940249200,-159.358683,0.000249,7]
[392775096,1761940249209,-176.50017,0.000249,7]
[392775097,1761940249218,-151.0,0.000249,7]
[392775098,1761940249227,-159.358683,0.000249,7]
[392775099,1761940249236,-151.0,0.000249,7]
[392775100,1761940249245,-176.50017,0.000249,7]
[392775101,1761940249260,-151.0,0.000249,7]
[392775102,1761940249270,-151.0,0.000249,7]
[392775103,1761940249279,-151.0,0.000249,7]
[392775104,1761940249290,-151.0,0.000249,7]
[392775105,1761940249299,-151.0,0.000249,7]
[392775106,1761940249309,-151.0,0.000249,7]
[392775107,1761940249318,-151.0,0.000249,7]
[392775108,1761940249327,-258823.124683,0.000249,2]
[392775109,1761940249336,-151.0,0.000249,7]
[392775110,1761940249345,-277.260388,0.000249,7]
[392775111,1761940249355,-354.72307,0.000249,7]
[392775112,1761940249364,-151.0,0.000249,7]
[392775113,1761940249375,-354.72307,0.000249,7]
[392775114,1761940249385,-151.0,0.000249,7]
[392775115,1761940249395,-354.72307,0.000249,7]
[392775116,1761940249405,-354.72307,0.000249,7]
[392775117,1761940249414,-151.0,0.000249,7]
[392775118,1761940249423,-568.776526,0.000249,7]
[392775119,1761940249432,-568.776526,0.000249,7]
[392775120,1761940249443,-151.0,0.000249,7]
[392775121,1761940249453,-151.0,0.000249,7]
[392775122,1761940249463,-151.0,0.000249,7]
[392775123,1761940249473,-568.776526,0.000249,7]
[392775124,1761940249483,-151.0,0.000249,7]
[392775125,1761940249495,-568.776526,0.000249,7]
[392775126,1761940249506,-151.0,0.000249,7]
[392775127,1761940249515,-255.654991,0.000249,7]
[392775128,1761940249524,-255.654991,0.000249,7]
[392775129,1761940249541,-255.654991,0.000249,7]
[392775130,1761940249728,-255.654991,0.000249,7]
[392775131,1761940249738,-151.0,0.000249,7]
[392775132,1761940249747,-151.0,0.000249,7]
[392775133,1761940249756,-1774.502489,0.000249,7]
[392775134,1761940249766,-151.0,0.000249,7]
[392775135,1761940249775,-1774.502489,0.000249,7]
[392775136,1761940249784,-1774.502489,0.000249,7]
[392775137,1761940249793,-1774.502489,0.000249,7]
[392775138,1761940249802,-301.241504,0.000249,7]
[392775139,1761940249811,-151.0,0.000249,7]
[392775140,1761940249820,-151.0,0.000249,7]
[392775141,1761940249829,-151.0,0.000249,7]
[392775142,1761940249838,-158.494729,0.000249,7]
[392775143,1761940249847,-265.596028,0.000249,7]
[392775144,1761940249857,-265.596028,0.000249,7]
[392775145,1761940249866,-265.596028,0.000249,7]
[392775146,1761940249876,-151.0,0.000249,7]
[392775147,1761940249885,-265.596028,0.000249,7]
[392775148,1761940249899,-151.0,0.000249,7]
[392775149,1761940249908,-151.0,0.000249,7]
[392775150,1761940249917,-1215.994356,0.000249,7]
[392775151,1761940249927,-969.491943,0.000249,7]
[392775152,1761940249936,-1215.994356,0.000249,7]
[392775153,1761940249946,-969.491943,0.000249,7]
[392775154,1761940249956,-1215.994356,0.000249,7]
[392775155,1761940249966,-969.491943,0.000249,7]
[392775156,1761940249975,-1215.994356,0.000249,7]
[392775157,1761940249985,-969.491943,0.000249,7]
[392775158,1761940249995,-533.537283,0.000249,7]
[392775159,1761940250005,-151.0,0.000249,7]
[392775160,1761940250014,-533.537283,0.000249,7]
[392775161,1761940250024,-533.537283,0.000249,7]
[392775162,1761940250033,-151.0,0.000249,7]
[392775163,1761940250043,-151.0,0.000249,7]
[392775164,1761940250052,-151.0,0.000249,7]
[392775165,1761940250062,-533.537283,0.000249,7]
[392775166,1761940250072,-1794.991543,0.000249,7]
[392775167,1761940250081,-151.0,0.000249,7]
[392775168,1761940250090,-1794.991543,0.000249,7]
[392775169,1761940250099,-151.0,0.000249,7]
[392775170,1761940250108,-1794.991543,0.000249,7]
[392775171,1761940250118,-151.0,0.000249,7]
[392775172,1761940250127,-151.0,0.000249,7]
[392775173,1761940250136,-1794.991543,0.000249,7]
[392775174,1761940250145,-151.0,0.000249,7]
[392775175,1761940250155,-151.0,0.000249,7]
[392775176,1761940250164,-216.885723,0.000249,7]
[392775177,1761940250173,-151.0,0.000249,7]
[392775178,1761940250182,-151.0,0.000249,7]
[392775179,1761940250191,-159.82648,0.000249,7]
[392775180,1761940250203,-151.0,0.000249,7]
[392775181,1761940250212,-151.0,0.000249,7]
[392775182,1761940250223,-151.0,0.000249,7]
[392775183,1761940250233,-151.0,0.000249,7]
[392775184,1761940250242,-532.666831,0.000249,7]
[392775185,1761940250252,-532.666831,0.000249,7]
[392775186,1761940250264,-532.666831,0.000249,7]
[392775187,1761940250274,-151.0,0.000249,7]
[392775188,1761940250283,-532.666831,0.000249,7]
[392775189,1761940250292,-151.0,0.000249,7]
[392775190,1761940250303,-151.0,0.000249,7]
[392775191,1761940250314,-151.0,0.000249,7]
[392775192,1761940250325,-151.0,0.000249,7]
[392775193,1761940250336,-151.0,0.000249,7]
[392775194,1761940250345,-322.719866,0.000249,7]
[392775195,1761940250355,-151.0,0.000249,7]
[392775196,1761940250364,-151.0,0.000249,7]
[392775197,1761940250373,-151.0,0.000249,7]
[392775198,1761940250383,-151.0,0.000249,7]
[392775199,1761940250393,-322.719866,0.000249,7]
[392775200,1761940250403,-151.0,0.000249,7]
[392775201,1761940250412,-151.0,0.000249,7]
[392775202,1761940250422,-322.719866,0.000249,7]
[392775203,1761940250431,-170.928952,0.000249,7]
[392775204,1761940250440,-151.0,0.000249,7]
[392775205,1761940250449,-322.719866,0.000249,7]
[392775206,1761940250458,-151.0,0.000249,7]
[392775207,1761940250467,-158.26855468,0.00024959,2]
[392775208,1761940250477,-152.0,0.00024974,4]
[392775209,1761940250486,-305.0,0.00025,5]
[392775210,1761940250495,-2738.90462144,0.00025,3]
[392775211,1761940250505,-450.0,0.00025,2]
[392775212,1761940250515,-179.463212,0.00025,5]
[392775213,1761940250524,-154.730149,0.00025,5]
[392775214,1761940250534,-247.654544,0.00025,5]
[392775215,1761940250543,-400.688541,0.00025,5]
[392775216,1761940250552,-1580.33858,0.00025,2]
[392775217,1761940250562,-18017.57440355,0.00025,2]
[392775218,1761940250571,-1000.0,0.00025,7]
[392775219,1761940250581,-176.7,0.00025035,2]
[392775220,1761940250591,-150.0,0.00025035,2]
[392775221,1761940250600,-150.0,0.00025035,2]
[392775222,1761940250610,-208.78,0.00025035,2]
[392775223,1761940250619,-176.7,0.00025035,2]
[392775224,1761940250629,-176.7,0.00025035,2]
[392775225,1761940250639,-176.7,0.00025035,2]
[392775226,1761940250648,-176.7,0.00025035,2]
[392775227,1761940250658,-176.7,0.00025035,2]
[392775228,1761940250667,-176.7,0.00025035,2]
[392775229,1761940250677,-264.97,0.000251,7]
[392775230,1761940250687,-158.26855468,0.00025178,2]
[392775231,1761940250696,-12932.54,0.000252,7]
[392775232,1761940250706,-314.79,0.000252,30]
[392775233,1761940250723,-182.0,0.00025373,7]
[392775234,1761940250742,-158.26855468,0.00025397,2]
[392775235,1761940250761,-152.0,0.00025488,5]
[392775236,1761940250780,-150.0,0.00025499,2]
[392775237,1761940250794,-150.0,0.00025499,2]
[392775238,1761940250814,-573.0,0.00025499,2]
[392775239,1761940250834,-3420.0,0.00025499,2]
[392775240,1761940250853,-820.0,0.00025499,2]
[392775241,1761940250872,-543.649,0.00025499,2]
[392775242,1761940250889,-1314.0,0.00025499,2]
[392775243,1761940250910,-1594.0,0.00025499,2]
[392775244,1761940250926,-565.489,0.00025499,2]
[392775245,1761940250942,-1271.0,0.00025499,2]
[392775246,1761940250958,-819.0,0.00025499,2]
[392775247,1761940250974,-6630.0,0.00025499,2]
[392775248,1761940250989,-2139.0,0.00025499,2]
[392775249,1761940251004,-304.552,0.00025499,2]
[392775250,1761940251019,-158.26855468,0.00025616,2]
[392775251,1761940251035,-500.0,0.00025708,2]
[392775252,1761940251051,-216.95,0.00025814,7]
[392775253,1761940251066,-179.463212,0.0002586,2]
[392775254,1761940251082,-154.730149,0.0002586,2]
[392775255,1761940251098,-152.530922,0.0002586,2]
[392775256,1761940251113,-152.530922,0.0002586,2]
[392775257,1761940251129,-151.174963,0.0002586,2]
[392775258,1761940251144,-247.654544,0.0002586,2]
[392775259,1761940251160,-400.688541,0.0002586,2]
[392775260,1761940251175,-900.0,0.00025946,2]
[392775261,1761940251190,-1200.0,0.00025946,2]
[392775262,1761940251206,-408.22696377,0.00026,2]
[392775263,1761940251226,-152.0,0.00026002,6]
[392775264,1761940251242,-750.0,0.00026027,2]
[392775265,1761940251259,-750.0,0.00026301,2]
[392775266,1761940251275,-1425.99836985,0.000264,2]
[392775267,1761940251290,-952.7,0.00026454,2]
[392775268,1761940251305,-476.35,0.00026454,2]
[392775269,1761940251320,-476.55,0.00026454,2]
[392775270,1761940251338,-476.35,0.00026489,2]
[392775271,1761940251358,-476.35,0.00026489,2]
[392775272,1761940251376,-952.7,0.00026489,2]
[392775273,1761940251394,-952.7,0.00026489,2]
[392775274,1761940251413,-476.35,0.00026489,2]
[392775275,1761940251430,-476.35,0.00026489,2]
[392775276,1761940251446,-476.35,0.00026489,2]
[392775277,1761940251463,-152.0,0.00026516,7]
[392775278,1761940251479,-750.0,0.00026575,2]
[392775279,1761940251497,-436.78865632,0.00026668,7]
[392775280,1761940251521,-579.08,0.00026676,2]
[392775281,1761940251536,-750.0,0.00026849,2]
[392775282,1761940251552,-12932.54,0.000269,7]
[392775283,1761940251569,-500.0,0.00026975,7]
[392775284,1761940251586,-250.0,0.00027,2]
[392775285,1761940251601,-1944.06111184,0.00027,14]
[392775286,1761940251617,-1020.44023159,0.00027,2]
[392775287,1761940251633,-530.0,0.00027,2]
[392775288,1761940251648,-500.0,0.00027,2]
[392775289,1761940251662,-179.463212,0.00027,14]
[392775290,1761940251677,-152.0,0.0002703,8]
[392775291,1761940251692,-3000.0,0.00027042,2]
[392775292,1761940251707,-177.0,0.00027064,7]
[392775293,1761940251722,-2000.0,0.000271,2]
[392775294,1761940251737,-750.0,0.00027123,2]
[392775295,1761940251751,-500.0,0.00027161,7]
[392775296,1761940251766,-150.0,0.00027369,2]
[392775297,1761940251780,-1186.44,0.00027397,2]
[392775298,1761940251794,-520.24,0.00027397,2]
[392775299,1761940251808,-300.0,0.00027397,2]
[392775300,1761940251823,-750.0,0.00027397,2]
[392775301,1761940251836,-156.74210082,0.00027397,5]
[392775302,1761940251851,-646.26,0.000274,7]
[392775303,1761940251865,-156.6393569,0.000274,4]
[392775304,1761940251880,-156.6393569,0.000274,4]
[392775305,1761940251894,-156.6393569,0.000274,4]
[392775306,1761940251908,-156.6393569,0.000274,4]
[392775307,1761940251923,-156.6393569,0.000274,4]
[392775308,1761940251937,-156.6393569,0.000274,4]
[392775309,1761940251952,-156.6393569,0.000274,4]
[392775310,1761940251966,-156.6393569,0.000274,4]
[392775311,1761940251981,-156.6393569,0.000274,4]
[392775312,1761940251995,-156.6393569,0.000274,4]
[392775313,1761940252009,-156.6393569,0.000274,4]
[392775314,1761940252024,-156.6393569,0.000274,4]
[392775315,1761940252038,-156.6393569,0.000274,4]
[392775316,1761940252053,-156.6393569,0.000274,4]
[392775317,1761940252067,-156.6393569,0.000274,4]
[392775318,1761940252081,-156.6393569,0.000274,4]
[392775319,1761940252097,-156.6393569,0.000274,4]
[392775320,1761940252111,-156.63,0.000274,4]
[392775321,1761940252126,-328.94264948,0.000274,4]
[392775322,1761940252140,-328.94264948,0.000274,4]
[392775323,1761940252155,-328.94264948,0.000274,4]
[392775324,1761940252171,-328.94264948,0.000274,4]
[392775325,1761940252183,-328.94264948,0.000274,4]
[392775326,1761940252192,-328.94264948,0.000274,4]
[392775327,1761940252202,-328.94264948,0.000274,4]
[392775328,1761940252212,-328.94264948,0.000274,4]
[392775329,1761940252221,-328.94264948,0.000274,4]
[392775330,1761940252232,-328.94264948,0.000274,4]
[392775331,1761940252242,-328.94264948,0.000274,4]
[392775332,1761940252253,-328.94264948,0.000274,4]
[392775333,1761940252264,-328.94264948,0.000274,4]
[392775334,1761940252274,-328.94264948,0.000274,4]
[392775335,1761940252564,-328.94264948,0.000274,4]
[392775336,1761940252598,-328.94264948,0.000274,4]
[392775337,1761940252611,-328.94264948,0.000274,4]
[392775338,1761940252621,-328.94264948,0.000274,4]
[392775339,1761940252630,-328.94264948,0.000274,4]
[392775340,1761940252639,-328.94,0.000274,4]
[392775341,1761940252648,-704.47749584,0.000274,4]
[392775342,1761940252659,-704.47749584,0.000274,4]
[392775343,1761940252668,-704.47749584,0.000274,4]
[392775344,1761940252677,-704.47749584,0.000274,4]
[392775345,1761940252690,-704.47749584,0.000274,4]
[392775346,1761940252700,-704.47749584,0.000274,4]
[392775347,1761940252710,-704.47749584,0.000274,4]
[392775348,1761940252719,-704.47749584,0.000274,4]
[392775349,1761940252728,-704.47749584,0.000274,4]
[392775350,1761940252737,-704.47749584,0.000274,4]
[392775351,1761940252747,-704.47749584,0.000274,4]
[392775352,1761940252756,-704.47749584,0.000274,4]
[392775353,1761940252765,-704.47749584,0.000274,4]
[392775354,1761940252775,-704.47749584,0.000274,4]
[392775355,1761940252784,-704.47749584,0.000274,4]
[392775356,1761940252793,-704.47749584,0.000274,4]
[392775357,1761940252802,-704.47749584,0.000274,4]
[392775358,1761940252812,-704.47749584,0.000274,4]
[392775359,1761940252821,-704.47749584,0.000274,4]
[392775360,1761940252830,-443.21929162,0.000274,4]
[392775363,1761940253703,-255.97414142,0.0001575,2]
[392775364,1761940253715,-1169.02585858,0.0001575,2]
[392775365,1761940253725,-988.22721105,0.00015897,2]
[392775366,1761940253736,-270.3606832,0.00015897,2]
[392775367,1761940253751,-166.41210575,0.00015897,2]
[392775368,1761940253760,-6468.0,0.00016499,2]
[392775369,1761940253769,-12.41170426,0.00019499,2]
[392775370,1761940253781,-6455.58829574,0.00019499,2]
[392775371,1761940253791,-151.0,0.0002,7]
[392775372,1761940253800,-151.0,0.0002,7]
[392775373,1761940253810,-3828.06817412,0.00022499,2]
[392775374,1761940253822,-2639.93182588,0.00022499,2]
[392775375,1761940253831,-151.0,0.000249,7]
[392775376,1761940253841,-151.0,0.000249,7]
[392775377,1761940253851,-261.25070838,0.000274,4]
[392775378,1761940253860,-845.71746567,0.000274,4]
[392775379,1761940253872,-798.06335796,0.000274,4]
[392775380,1761940253882,-51.93664204,0.000274,4]
[392775381,1761940253899,-788.03356784,0.00025499,2]
[392775382,1761940254611,-151.0,0.0002,7]
[392775383,1761940254620,-151.0,0.0002,7]
[392775384,1761940254629,-151.0,0.0002,7]
[392775385,1761940254639,-151.0,0.0002,7]
[392775386,1761940254648,-151.0,0.000249,7]
[392775387,1761940254659,-151.0,0.000249,7]
[392775388,1761940254669,-5679.96643216,0.00025499,2]
[392775389,1761940254678,-1591.84418159,0.000274,4]
[392775390,1761940254688,-1643.78082363,0.000274,4]
[392775391,1761940254697,-1643.78082363,0.000274,4]
[392775392,1761940254707,-1643.78082363,0.000274,4]
[392775393,1761940254716,-1643.78082363,0.000274,4]
[392775394,1761940254725,-1643.78082363,0.000274,4]
[392775395,1761940254734,-1643.78082363,0.000274,4]
[392775396,1761940254743,-1643.78082363,0.000274,4]
[392775397,1761940254753,-1643.78082363,0.000274,4]
[392775398,1761940254762,-1643.78082363,0.000274,4]
[392775399,1761940254771,-1643.78082363,0.000274,4]
[392775400,1761940254781,-1643.78082363,0.000274,4]
[392775401,1761940254790,-1643.78082363,0.000274,4]
[392775402,1761940254799,-1643.78082363,0.000274,4]
[392775403,1761940254809,-1643.78082363,0.000274,4]
[392775404,1761940254818,-1643.78082363,0.000274,4]
[392775405,1761940254828,-1643.78082363,0.000274,4]
[392775406,1761940254838,-1643.78082363,0.000274,4]
[392775407,1761940254847,-1643.78,0.000274,4]
[392775408,1761940254856,-846.52434056,0.000274,4]
[392775409,1761940254865,-846.52434056,0.000274,4]
[392775410,1761940254874,-846.52434056,0.000274,4]
[392775411,1761940254883,-846.52434056,0.000274,4]
[392775412,1761940254892,-846.52434056,0.000274,4]
[392775413,1761940254901,-846.52434056,0.000274,4]
[392775414,1761940254912,-846.52434056,0.000274,4]
[392775415,1761940254921,-846.52434056,0.000274,4]
[392775416,1761940254930,-846.52434056,0.000274,4]
[392775417,1761940254939,-846.52434056,0.000274,4]
[392775418,1761940254948,-846.52434056,0.000274,4]
[392775419,1761940254958,-846.52434056,0.000274,4]
[392775420,1761940254968,-846.52434056,0.000274,4]
[392775421,1761940254978,-846.52434056,0.000274,4]
[392775422,1761940254987,-846.52434056,0.000274,4]
[392775423,1761940254996,-846.52434056,0.000274,4]
[392775424,1761940255007,-846.52434056,0.000274,4]
[392775425,1761940255016,-846.52434056,0.000274,4]
[392775426,1761940255025,-846.52434056,0.000274,4]
[392775427,1761940255034,-846.52,0.000274,4]
[392775428,1761940255043,-1975.2234613,0.000274,4]
[392775429,1761940255053,-1975.2234613,0.000274,4]
[392775430,1761940255062,-1975.2234613,0.000274,4]
[392775431,1761940255073,-1975.2234613,0.000274,4]
[392775432,1761940255082,-1975.2234613,0.000274,4]
[392775433,1761940255091,-1975.2234613,0.000274,4]
[392775434,1761940255103,-1975.2234613,0.000274,4]
[392775435,1761940255326,-1975.2234613,0.000274,4]
[392775436,1761940255336,-1975.2234613,0.000274,4]
[392775437,1761940255346,-1975.2234613,0.000274,4]
[392775438,1761940255355,-1975.2234613,0.000274,4]
[392775439,1761940255364,-1975.2234613,0.000274,4]
[392775440,1761940255373,-1975.2234613,0.000274,4]
[392775441,1761940255382,-1975.2234613,0.000274,4]
[392775442,1761940255391,-1975.2234613,0.000274,4]
[392775443,1761940255400,-1975.2234613,0.000274,4]
[392775444,1761940255410,-1975.2234613,0.000274,4]
[392775445,1761940255419,-1975.2234613,0.000274,4]
[392775446,1761940255428,-1975.2234613,0.000274,4]
[392775447,1761940255437,-1975.22,0.000274,4]
[392775448,1761940255447,-179.463212,0.000274,4]
[392775449,1761940255456,-179.463212,0.000274,4]
[392775450,1761940255465,-179.463212,0.000274,4]
[392775451,1761940255474,-179.463212,0.000274,4]
[392775452,1761940255483,-179.463212,0.000274,4]
[392775453,1761940255493,-154.730149,0.000274,4]
[392775454,1761940255503,-154.730149,0.000274,4]
[392775455,1761940255512,-154.730149,0.000274,4]
[392775456,1761940255522,-151.174963,0.000274,4]
[392775457,1761940255531,-247.654544,0.000274,4]
[392775458,1761940255540,-247.654544,0.000274,4]
[392775459,1761940255550,-247.654544,0.000274,4]
[392775460,1761940255559,-247.654544,0.000274,4]
[392775461,1761940255568,-247.654544,0.000274,4]
[392775462,1761940255577,-400.688541,0.000274,4]
[392775463,1761940255586,-400.688541,0.000274,4]
[392775464,1761940255599,-400.688541,0.000274,4]
[392775465,1761940255608,-400.688541,0.000274,4]
[392775466,1761940255618,-400.688541,0.000274,4]
[392775467,1761940255627,-1249.37,0.000274,2]
[392775468,1761940255637,-1249.37,0.000274,2]
[392775469,1761940255646,-1249.37,0.000274,2]
[392775470,1761940255655,-1249.37,0.000274,2]
[392775471,1761940255664,-1249.37,0.000274,2]
[392775472,1761940255674,-179.463212,0.000275,5]
[392775473,1761940255683,-154.730149,0.000275,5]
[392775474,1761940255692,-247.654544,0.000275,5]
[392775475,1761940255701,-400.688541,0.000275,5]
[392775476,1761940255711,-500.0,0.00027503,7]
[392775477,1761940255719,-152.0,0.00027544,9]
[392775478,1761940255728,-500.0,0.00027557,7]
[392775479,1761940255737,-500.0,0.0002756,7]
[392775480,1761940255746,-500.0,0.00027611,7]
[392775481,1761940255756,-500.0,0.00027613,7]
[392775482,1761940255765,-237.13,0.00027671,7]
[392775483,1761940255774,-750.0,0.00027671,2]
[392775484,1761940255784,-971.68,0.00027671,30]
[392775485,1761940255793,-500.0,0.00027698,7]
[392775486,1761940255802,-500.0,0.00027707,7]
[392775487,1761940255811,-216.95,0.00027722,7]
[392775488,1761940255820,-500.0,0.00027742,7]
[392775489,1761940255829,-179.463212,0.0002775,14]
[392775490,1761940255838,-179.463212,0.0002779,3]
[392775491,1761940255848,-154.730149,0.0002779,3]
[392775492,1761940255857,-152.530922,0.0002779,3]
[392775493,1761940255866,-152.530922,0.0002779,3]
[392775494,1761940255876,-151.174963,0.0002779,3]
[392775495,1761940255884,-247.654544,0.0002779,3]
[392775496,1761940255893,-400.688541,0.0002779,3]
[392775497,1761940255902,-500.0,0.00027815,7]
[392775498,1761940255913,-500.0,0.00027852,7]
[392775499,1761940255922,-500.0,0.00027865,7]
[392775500,1761940255931,-500.0,0.00027938,7]
[392775501,1761940255940,-500.0,0.00027938,7]
[392775502,1761940255949,-237.13,0.00027945,8]
[392775503,1761940255958,-750.0,0.00027945,2]
[392775504,1761940255967,-6338.70973886,0.00028,2]
[392775505,1761940255977,-10090.04271267,0.00028,3]
[392775506,1761940255986,-500.0,0.00028009,7]
[392775507,1761940255995,-500.0,0.00028038,7]
[392775508,1761940256004,-152.0,0.00028058,10]
[392775509,1761940256013,-199.99999984,0.00028096,7]
[392775510,1761940256022,-900.0,0.00028138,7]
[392775511,1761940256031,-1200.0,0.00028138,7]
[392775512,1761940256041,-12932.54,0.000282,7]
[392775513,1761940256050,-500.0,0.0002821,7]
[392775514,1761940256059,-237.13,0.00028219,9]
[392775515,1761940256069,-750.0,0.00028219,2]
[392775516,1761940256078,-500.0,0.00028254,7]
[392775517,1761940256087,-697.54,0.00028281,2]
[392775518,1761940256099,-697.54,0.00028281,2]
[392775519,1761940256108,-500.0,0.00028394,7]
[392775520,1761940256118,-500.0,0.000284,7]
[392775521,1761940256128,-500.0,0.00028406,7]
[392775522,1761940256137,-500.0,0.00028411,7]
[392775523,1761940256147,-500.0,0.00028422,7]
[392775524,1761940256156,-237.13,0.00028493,10]
[392775525,1761940256165,-165.39,0.00028493,2]
[392775526,1761940256175,-750.0,0.00028493,2]
[392775527,1761940256184,-3420.0,0.00028499,2]
[392775528,1761940256193,-820.0,0.00028499,2]
[392775529,1761940256202,-1314.0,0.00028499,2]
[392775530,1761940256211,-1594.0,0.00028499,2]
[392775531,1761940256220,-600.936,0.00028499,2]
[392775532,1761940256229,-819.0,0.00028499,2]
[392775533,1761940256238,-3619.113,0.00028499,2]
[392775534,1761940256248,-1813.617,0.00028499,2]
[392775535,1761940256261,-6468.0,0.00028499,2]
[392775536,1761940256270,-646.26,0.000285,7]
[392775537,1761940256279,-2003.812228,0.000285,2]
[392775538,1761940256288,-179.463212,0.000285,14]
[392775539,1761940256298,-154.730149,0.000285,14]
[392775540,1761940256307,-500.0,0.00028516,7]
[392775541,1761940256316,-500.0,0.00028526,2]
[392775542,1761940256327,-152.0,0.00028571,11]
[392775543,1761940256338,-500.0,0.00028718,7]
[392775544,1761940256347,-177.0,0.00028756,14]
[392775545,1761940256357,-2524.75,0.00028767,30]
[392775546,1761940256366,-237.13,0.00028767,11]
[392775547,1761940256375,-750.0,0.00028767,2]